[Event "VIII Open Semana Santa 2024"]
[Site "San Vicente del Raspeig"]
[Date "2024.03.29"]
[Round "5.5"]
[White "Yuffa, Daniil"]
[Black "Stribuk, Artiom"]
[Result "1/2-1/2"]
[ECO "B66"]
[WhiteElo "2606"]
[BlackElo "2418"]
[Annotator "TA"]
[PlyCount "120"]
[EventDate "2024.03.27"]
[EventType "swiss"]
[EventCountry "ESP"]
[SourceTitle "playchess.com"]
[Source "ChessBase"]
[SourceQuality "1"]
[TimeControl "5400+30"]

{[%evp 51,120,0,27,15,329,0,0,-20,29,0,50,21,36,0,0,0,112,91,108,91,116,41,111,129,125,83,81,68,138,145,185,172,178,181,248,105,133,0,221,147,147,132,89,0,164,151,165,110,96,103,108,0,0,0,0,-123,0,0,0,0,0,0,0,0,0,0,0,0,0,0,0]} 1. e4 {[%emt 0:00:28]} c5 {[%emt 0:00:06]} 2. Nf3 {[%emt 0:00:23]} d6 {[%emt 0:00:07]} 3. d4 {[%emt 0:00:26]} cxd4 {[%emt 0:00:07]} 4. Nxd4 {[%emt 0:00:08]} Nf6 {[%emt 0:00:08]} 5. Nc3 {[%emt 0:00:19]} Nc6 {[%emt 0:00:07]} 6. Bg5 {[%emt 0:00:27]} e6 {[%emt 0:00:07]} 7. Qd2 {[%emt 0:00:52]} a6 {[%emt 0:00:09]} 8. Nxc6 {[%emt 0:00:26] B66: Sizilianisch (Richter/Rauser-Angriff).} bxc6 {[%emt 0:00:02]} 9. O-O-O {[%emt 0:00:09]} Be7 {[%emt 0:00:41]} 10. Bxf6 {[%emt 0:01:50]} gxf6 {[%emt 0:00:02]} 11. Bc4 {[%emt 0:00:18]} Bb7 {[%emt 0:00:06]} 12. Rhe1 {[%emt 0:00:55]} Qc7 {[%emt 0:00:51]} 13. Qe2 {[%emt 0:07:32]} h5 {[%emt 0:17:00]} 14. Kb1 {[%emt 0:06:46]} d5 {[%emt 0:10:30]} 15. Bb3 {[%emt 0:08:21]} Rd8 $146 {[%emt 0:03:55]} ({Predecessor:} 15... h4 16. f4 Bb4 17. exd5 cxd5 18. Nxd5 Bxd5 19. Bxd5 Rd8 20. c3 Be7 21. Bf3 Rxd1+ 22. Rxd1 Qxf4 23. Qxa6 {1-0 Paravyan,D (2586)-Bacrot,E (2653) Titled Tuesday intern op 06th Dec Early blitz 2022 (4)}) 16. a3 {[%emt 0:11:14]} Kf8 {[%emt 0:09:35]} 17. g3 {[%emt 0:08:56]} Qa5 {[%emt 0:05:30]} 18. Qe3 {[%emt 0:07:46]} Qc5 {[%emt 0:11:33]} 19. Qf4 {[%emt 0:04:40]} Qd6 {[%emt 0:08:16]} 20. Qc1 {[%emt 0:03:48]} Qc7 {[%emt 0:10:38]} 21. Qe3 {[%emt 0:06:35]} Kg7 {[%emt 0:04:48]} 22. Ne2 {[%emt 0:01:39]} dxe4 {[%emt 0:04:39]} 23. Rxd8 {[%emt 0:08:17]} Rxd8 {[%emt 0:00:21]} 24. Nf4 {[%emt 0:03:46]} Qe5 {[%emt 0:00:23]} 25. Qe2 {[%emt 0:00:20]} c5 {[%emt 0:03:47]} 26. Nxh5+ {[%emt 0:00:42]} Kh6 {[%emt 0:05:26]} 27. Nf4 {[%emt 0:00:28]} f5 $2 {[%emt 0:00:43][%mdl 8192]} (27... Rd6 $11 {und Schwarz steht sicher.}) 28. c3 $2 {[%emt 0:04:32]} (28. Bxe6 $18 {Weiss droht Qh5+ und Matt.} fxe6 29. Qh5+ Kg7 30. Qg6+ Kh8 31. Nh5 (31. Qxe6 $2 Qxe6 32. Nxe6 Rd2 $19) (31. Qf7 Qg7 $14)) 28... Kg7 $11 {[%emt 0:01:15]} 29. h4 {[%emt 0:01:47]} Rd6 {[%emt 0:03:20]} (29... Bc6 {scheint genauer.}) 30. Bc4 {[%emt 0:03:13]} (30. Nd3 $5 Qf6 (30... Rxd3 31. Qxd3 exd3 32. Rxe5 $16) 31. Nxc5 $14) 30... Bd5 {[%emt 0:00:42]} (30... Rb6 $11) 31. Bxa6 $14 {[%emt 0:01:33]} Rb6 $1 {[%emt 0:00:16]} 32. Bb5 {[%emt 0:02:39]} Bb3 {[%emt 0:00:46]} 33. Bc4 {[%emt 0:01:01]} Ba4 {[%emt 0:00:32]} (33... Qb8 $1 $11 {bleibt in der Remisbreite.} 34. Bxb3 Rxb3) 34. Ka2 {[%emt 0:00:28]} Kg8 {[%emt 0:00:06]} 35. Qd2 {[%emt 0:01:08]} Qb8 {[%emt 0:00:52]} 36. Re2 {[%emt 0:01:10]} (36. g4 $16 {Und jetzt gxf5 wäre schön.} Qd6 37. Qe3 (37. Qxd6 Rxd6 38. h5 fxg4 $14)) 36... Bb3+ {[%emt 0:00:31]} (36... Rd6 $14 37. Qe3 Bb5 38. Bxb5 (38. Qxc5 $2 Rd5 $19) 38... Qxb5) 37. Bxb3 $16 {[%emt 0:00:04]} Rxb3 {[%emt 0:00:03]} 38. Qd7 {[%emt 0:00:38]} Rb7 {[%emt 0:00:32]} 39. Qa4 {[%emt 0:00:19]} Bd6 {[%emt 0:00:39]} ({Vorzuziehen ist} 39... Qd6 $14) 40. Ng2 $1 $16 {[%emt 0:01:19]} Be5 {[%emt 0:00:41]} 41. Ne3 {[%emt 0:00:14]} Ra7 {[%emt 0:00:33]} 42. Qc4 {[%emt 0:00:20]} Qd6 {[%emt 0:00:03]} (42... Qb6 $142 43. g4 f4) 43. Re1 {[%emt 0:01:05]} (43. g4 $18 {und Weiss behält klar die Oberhand.} f4 44. Nc2) 43... Qd2 $16 {[%emt 0:00:31]} 44. Re2 {[%emt 0:00:29]} (44. Qxc5 Qxe1 45. Qxe5 (45. Qxa7 Qxf2 46. g4 Bf4 $19) 45... Rb7 $11) (44. Rd1 $16 Qxf2 45. Qxc5) 44... Qd6 $1 $18 {[%emt 0:00:30]} 45. Rc2 {[%emt 0:00:28]} Bf6 {[%emt 0:00:43]} 46. Rc1 {[%emt 0:00:19]} Qd2 {[%emt 0:00:27]} 47. Rc2 {[%emt 0:00:22]} (47. Qxc5 Rxa3+ 48. Kxa3 Qxc1 $11) (47. Qf1 $1 $16 {Rd1 wäre nun fies.} Rb7 48. Rc2) 47... Qd6 $18 {[%emt 0:00:08]} 48. Qe2 {[%emt 0:00:28]} Rd7 {[%emt 0:00:08]} 49. Nc4 {[%emt 0:01:10]} (49. Rc1 $18) 49... Qa6 $16 {[%emt 0:00:14] [#]} 50. b3 $1 {[%emt 0:00:51]} Rd3 {[%emt 0:00:24]} 51. g4 {[%emt 0:00:56]} (51. Qe1 $16) 51... Bxc3 $11 {[%emt 0:00:50]} ({Bitte nicht} 51... Bxh4 52. gxf5 exf5 53. Nb2 $14) 52. gxf5 {[%emt 0:00:11]} exf5 {[%emt 0:00:05]} 53. Qh5 {[%emt 0:01:27] [#]} (53. Qxd3 $1 $11 exd3 54. Rxc3) 53... Bg7 {[%emt 0:00:42]} (53... Qe6 $1 $17 {Und ...Bg7 würde nun gewinnen.} 54. Qg5+ Bg7) 54. Qxf5 $11 {[%emt 0:00:54]} Rd1 {[%emt 0:00:09]} 55. Ne5 {[%emt 0:00:37]} (55. Qxe4 $2 Ra1#) 55... Qf1 {[%emt 0:02:09]} 56. Qxf7+ {[%emt 0:00:09]} (56. Nxf7 $2 Ra1#) 56... Kh7 {[%emt 0:00:29]} 57. Qh5+ {[%emt 0:00:20]} (57. Rxc5 $2 {wird mattgesetzt.} Qe2+) 57... Kg8 {[%emt 0:00:05]} 58. Qf7+ {[%emt 0:00:22]} (58. Rxc5 $2 Rd2+) 58... Kh7 {[%emt 0:00:31]} 59. Qf5+ {[%emt 0:00:25]} (59. Rxc5 $2 {führt zum Matt.} Qe2+) 59... Kg8 $1 {[%emt 0:00:15]} 60. Qf7+ {[%emt 0:02:01]} Kh7 {[%emt 0:01:42]} 1/2-1/2

[Event "VIII Open Semana Santa 2024"]
[Site "San Vicente del Raspeig"]
[Date "2024.03.29"]
[Round "5.6"]
[White "Makhnev, Denis"]
[Black "Martin, Julian"]
[Result "1-0"]
[ECO "E08"]
[WhiteElo "2516"]
[BlackElo "2408"]
[Annotator "TA"]
[PlyCount "85"]
[EventDate "2024.03.27"]
[EventType "swiss"]
[EventCountry "ESP"]
[SourceTitle "playchess.com"]
[Source "ChessBase"]
[SourceQuality "1"]
[TimeControl "5400+30"]

{[%evp 12,85,22,30,32,20,21,10,35,28,37,52,52,54,60,58,51,48,41,50,45,59,60,32,65,55,46,50,95,63,66,70,102,104,113,91,108,104,122,92,112,104,185,189,194,179,295,298,294,308,323,330,318,319,374,357,415,415,1000,931,818,466,556,488,547,561,561,546,979,979,5274,5052,29977,29978,6083,6079]} 1. Nf3 {[%emt 0:00:10]} Nf6 {[%emt 0:01:27]} 2. c4 {[%emt 0:00:07]} e6 {[%emt 0:00:05]} 3. g3 {[%emt 0:00:05]} d5 {[%emt 0:00:11]} 4. d4 {[%emt 0:00:07]} Be7 {[%emt 0:00:53]} 5. Bg2 {[%emt 0:00:10]} O-O {[%emt 0:00:11]} 6. O-O {[%emt 0:00:09]} Nbd7 {[%emt 0:00:05]} 7. Qc2 {[%emt 0:01:02]} a5 {[%emt 0:00:03]} 8. Nbd2 {[%emt 0:01:38]} c5 {[%emt 0:02:15]} 9. Rd1 {[%emt 0:03:23]} cxd4 {[%emt 0:11:41] The position is equal.} 10. Nxd4 {[%emt 0:08:58]} e5 {[%emt 0:05:17][%cal Be6e5,Be5d4,Bd4d3][%mdl 32]} 11. Nf5 {[%emt 0:01:17]} d4 {[%emt 0:02:50]} 12. e3 {[%emt 0:00:20]} Nc5 {[%emt 0:04:48]} 13. Nxe7+ {[%emt 0:00:27]} Qxe7 {[%emt 0:00:12]} 14. exd4 {[%emt 0:00:06]} exd4 {[%emt 0:00:12]} 15. Nb3 {[%emt 0:00:08]} Bg4 {[%emt 0:16:34]} 16. f3 $1 {[%emt 0:01:55]} (16. Rxd4 Qe1+ 17. Bf1 Nxb3 18. axb3 (18. Qxb3 $2 Be2 $19) 18... Rfe8 19. Rxg4 Nxg4 $15) 16... d3 {[%emt 0:09:31]} 17. Qf2 {[%emt 0:00:21]} Nxb3 {[%emt 0:01:26]} 18. axb3 {[%emt 0:00:09]} Bf5 {[%emt 0:00:53]} 19. Bf1 {[%emt 0:03:23]} Rfd8 {[%emt 0:05:58][%cal Oa5a4]} 20. Bd2 {[%emt 0:00:20]} Qc7 $1 {[%emt 0:01:03]} 21. Be3 {[%emt 0:04:37][%cal Bd2e3,Be3b6,Bb6a5,Ba5b4,Bb4e7][%mdl 32] Bb6 would now be deadly.} Qc6 {[%emt 0:09:02] White leaves nothing to chance now.} 22. Bb6 {[%emt 0:06:31]} Rd6 {[%emt 0:03:34][%cal Of6d7]} 23. Rxa5 {[%emt 0:00:35]} Rxa5 {[%emt 0:02:44]} 24. Bxa5 {[%emt 0:01:02]} b5 {[%emt 0:02:53]} 25. Bb4 {[%emt 0:00:08]} Rd8 {[%emt 0:00:58]} 26. Be7 $36 {[%emt 0:00:06][%mdl 2048] White is on the roll.} Rd7 {[%emt 0:07:32] [#]} (26... Re8 $16 {was called for.} 27. Bxf6 (27. Bxd3 Bxd3 28. Bxf6 bxc4 $14) 27... gxf6) 27. Qc5 $1 $18 {[%emt 0:00:06]} Qxc5+ {[%emt 0:00:59]} 28. Bxc5 {[%emt 0:00:08]} g5 {[%emt 0:00:04]} (28... h5 $142 29. cxb5 Rd5) 29. g4 {[%emt 0:00:24]} (29. cxb5 g4 30. fxg4 Nxg4) 29... Bg6 {[%emt 0:00:35]} 30. Kf2 {[%emt 0:04:32]} ({Resist} 30. cxb5 $6 Rd5 $18) 30... h5 {[%emt 0:01:02]} 31. h3 {[%emt 0:00:41][%cal Bh2h3,Bh3g4][%mdl 32]} ({And not} 31. cxb5 hxg4 32. Bg2 gxf3 33. Bxf3 Ne4+ 34. Bxe4 Bxe4 $11) 31... hxg4 {[%emt 0:01:39]} 32. hxg4 {[%emt 0:00:05]} Ne8 {[%emt 0:00:51]} 33. cxb5 {[%emt 0:04:07][%cal Bc4b5,Bb5b6][%mdl 32]} Rd5 {[%emt 0:00:25]} 34. b4 {[%emt 0:00:37][%cal Bb3b4,Bb4b5,Bb5b6][%mdl 32]} Nc7 {[%emt 0:00:55]} (34... Nd6 $142 35. Bxd6 (35. b6 Nb7 $18) 35... Rxd6) 35. b6 {[%emt 0:01:19]} Na6 {[%emt 0:00:01]} 36. b7 {[%emt 0:00:08]} Rd7 {[%emt 0:00:40] [#]} 37. b5 $1 {[%emt 0:00:05]} Nb8 {[%emt 0:00:32]} 38. b6 {[%emt 0:00:05]} Rxb7 {[%emt 0:01:23]} 39. Bxd3 {[%emt 0:00:13]} Nd7 {[%emt 0:00:46]} 40. Ba6 {[%emt 0:00:11]} Nxc5 {[%emt 0:00:46]} 41. Bxb7 {[%emt 0:00:05]} Nxb7 {[%emt 0:00:08]} 42. Rd7 {[%emt 0:00:05]} Nc5 {[%emt 0:00:10]} 43. Rc7 {[%emt 0:00:12] Weighted Error Value: White=0.20 (precise) /Black=0.37.  Mistake:       	---       	Black=3      Inaccurate:     	White=1     	Black=4      OK:         	White=17    	Black=12     Best:        	White=3     	Black=2      Strong:       	White=2     	Black=1} 1-0

[Event "VIII Open Semana Santa 2024"]
[Site "San Vicente del Raspeig"]
[Date "2024.03.29"]
[Round "5.7"]
[White "Heimann, Mark"]
[Black "Basso, Pier Luigi"]
[Result "1-0"]
[ECO "C84"]
[WhiteElo "2435"]
[BlackElo "2503"]
[Annotator "TA"]
[PlyCount "115"]
[EventDate "2024.03.27"]
[EventType "swiss"]
[EventCountry "ESP"]
[SourceTitle "playchess.com"]
[Source "ChessBase"]
[SourceQuality "1"]
[TimeControl "5400+30"]

{[%evp 13,115,32,52,35,50,55,35,52,51,39,50,4,59,55,72,68,122,135,124,128,157,147,164,164,207,181,202,163,182,150,154,107,175,174,156,164,193,159,144,92,122,106,104,108,178,170,192,183,193,197,190,180,187,146,176,166,177,183,215,231,221,220,316,311,364,242,466,450,477,460,478,462,445,449,491,488,541,532,718,721,745,745,846,831,1010,987,1005,1017,29988,29988,29988,29989,29989,29990,29990,29987,29987,29988,29988,29987,29989,29990,29992,29993]} 1. e4 {[%emt 0:00:02]} e5 {[%emt 0:00:14]} 2. Nf3 {[%emt 0:00:03]} Nc6 {[%emt 0:00:06]} 3. Bb5 {[%emt 0:00:03]} a6 {[%emt 0:01:28]} 4. Ba4 {[%emt 0:00:05]} Nf6 {[%emt 0:00:06]} 5. O-O {[%emt 0:00:06]} Nxe4 {[%emt 0:00:16]} 6. d4 {[%emt 0:00:08]} Be7 {[%emt 0:00:05]} 7. Re1 {[%emt 0:01:40]} b5 {[%emt 0:00:05]} 8. Rxe4 {[%emt 0:02:18] [#] Und jetzt Bb3 wäre schön.} (8. Nxe5 Nxe5 9. dxe5 Bb7 $11 (9... Nxf2 10. Qf3 $11)) (8. dxe5 Nxf2 9. Kxf2 bxa4 $17) 8... d5 {[%emt 0:00:05]} 9. Nxe5 {[%emt 0:00:55]} Nxe5 {[%emt 0:00:06]} 10. Rxe5 {[%emt 0:00:32] Weiß steht etwas besser.} bxa4 {[%emt 0:00:05]} 11. Nc3 {[%emt 0:10:56][%csl LRa4,LRd5]} O-O {[%emt 0:01:53]} 12. Qh5 {[%emt 0:10:19]} (12. Nxa4 $14 {kam in Betracht.} Bd6 13. Re3 (13. Rxd5 Bxh2+ 14. Kxh2 Qxd5 $17)) 12... c6 {[%emt 0:11:50]} (12... Bd6 $11 13. Re1 (13. Rxd5 c6 $17) 13... Re8) 13. Nxa4 $14 {[%emt 0:02:33]} g6 {[%emt 0:11:37]} 14. Qh6 {[%emt 0:04:12]} Bf6 {[%emt 0:09:10]} ({Vorzuziehen ist} 14... Bf5 $14) 15. Bg5 $16 {[%emt 0:02:58] Weiß steht deutlich aktiver. Die schwarzen Türme stehen passiv.} Bxg5 {[%emt 0:03:09]} 16. Rxg5 {[%emt 0:00:03]} (16. Qxg5 $2 f6 17. Qg3 fxe5 $19) 16... Qe7 {[%emt 0:03:25] Lässt Re1 nicht zu} 17. c3 {[%emt 0:03:49] Pariert Qb4.} f5 {[%emt 0:08:12]} 18. h4 {[%emt 0:08:17]} Re8 {[%emt 0:02:34]} 19. Nc5 {[%emt 0:02:30]} Rb8 {[%emt 0:07:26]} 20. Nd3 {[%emt 0:03:50]} Qg7 {[%emt 0:00:45]} 21. Qxg7+ {[%emt 0:00:08]} Kxg7 {[%emt 0:00:03]} 22. h5 {[%emt 0:12:38]} ({Günstiger ist} 22. b4) 22... Kf6 {[%emt 0:02:35] Wehrt Ne5 ab} (22... f4 $16 {war nötig.}) 23. f4 $18 {[%emt 0:01:37]} Re3 {[%emt 0:05:26]} 24. Rd1 {[%emt 0:08:01]} a5 {[%emt 0:00:44]} 25. Kf2 {[%emt 0:00:55]} Re4 {[%emt 0:01:50] Droht ...Ba6 und aus.} 26. hxg6 {[%emt 0:04:49]} (26. Kg3 $142) 26... hxg6 $16 {[%emt 0:00:08][%cal Oe4f4]} 27. Kg3 {[%emt 0:00:38]} Re3+ {[%emt 0:05:53] [#]} 28. Kh2 $1 {[%emt 0:00:32]} Ba6 {[%emt 0:00:21]} (28... Be6 $16 29. Kg1 Rb7) 29. Nc5 $18 {[%emt 0:02:08] Nd7+ wäre nun fies.} Rh8+ {[%emt 0:06:43]} 30. Kg1 {[%emt 0:00:02]} Bc8 {[%emt 0:00:05]} 31. Kf2 {[%emt 0:00:35]} Rhe8 {[%emt 0:02:03]} 32. Rd2 {[%emt 0:00:04] Lässt Re2+ nicht zu} Re1 {[%emt 0:00:24]} 33. Nd3 {[%emt 0:01:11]} Ra1 {[%emt 0:00:04]} 34. Ne5 {[%emt 0:00:04]} Rg8 {[%emt 0:00:06]} 35. a3 $36 {[%emt 0:00:25][%mdl 2048] Schwarz steht unter starkem Druck.} (35. Nxc6 Rxa2 36. Ne5 a4 $16) 35... Bb7 {[%emt 0:02:06]} 36. Nd7+ {[%emt 0:01:30]} Kf7 {[%emt 0:00:03]} 37. Nc5 {[%emt 0:00:09]} (37. Ne5+ Kf6 38. Rd3 Ba6 $16) 37... Rb8 {[%emt 0:00:47]} (37... Bc8 $142 38. Re2 Rh8) 38. Re2 {[%emt 0:01:48]} Rb1 {[%emt 0:02:31]} 39. Kg3 {[%emt 0:01:09] Schwarz muss nun Re6 beachten.} (39. Nd7 Ba6 $18) 39... Bc8 $2 {[%emt 0:03:40]} (39... Ba8 {ist wohl besser.} 40. Re6 (40. Nd3 Rg8 $18) 40... Rg8) 40. Nd3 {[%emt 0:00:08]} Ba6 {[%emt 0:01:34]} 41. Ne5+ {[%emt 0:00:04]} Kg7 {[%emt 0:00:08]} 42. Rxg6+ {[%emt 0:00:13]} Kh7 {[%emt 0:00:04]} 43. Re3 {[%emt 0:00:04] jetzt Kh2 und aus.} Rh1 {[%emt 0:01:56]} 44. b4 {[%emt 0:00:54]} ({Keinesfalls} 44. Nxc6 Kxg6 45. Nxb8 Bc4) 44... Re8 {[%emt 0:00:34][%cal Oe8e5]} 45. Rg5 {[%emt 0:00:54]} (45. bxa5 Rxe5 46. Rxe5 Kxg6 47. Re6+ Kh5 48. Rxc6 Bd3 $11) 45... a4 {[%emt 0:00:19]} 46. Rxf5 {[%emt 0:00:57]} Rg8+ {[%emt 0:01:03]} 47. Rg5 {[%emt 0:00:03]} Rxg5+ {[%emt 0:00:03]} 48. fxg5 {[%emt 0:00:01][%mdl 4096] Endspiel. KRB-KRN} Ra1 {[%emt 0:00:05]} 49. g6+ {[%emt 0:03:40]} Kg8 {[%emt 0:00:38]} 50. Kf4 {[%emt 0:01:29] Und Ng4 würde nun gewinnen.} Rxa3 {[%emt 0:00:05]} 51. Kg5 {[%emt 0:00:06] Weiß setzt Matt.} Ra2 {[%emt 0:00:15]} 52. Ng4 {[%emt 0:00:26]} Re2 {[%emt 0:00:20]} 53. Kf6 {[%emt 0:00:57]} Rxe3 {[%emt 0:01:25]} 54. Nh6+ {[%emt 0:00:04]} Kf8 {[%emt 0:00:04]} 55. g7+ {[%emt 0:00:01]} Ke8 {[%emt 0:00:03]} 56. g8=Q+ {[%emt 0:00:04]} (56. g8=R+ Kd7 57. Ra8 (57. Rg7+ Kc8 $11) 57... Bb5 $11) 56... Kd7 {[%emt 0:00:04]} 57. Nf5 {[%emt 0:00:29]} Rxc3 {[%emt 0:00:21]} 58. Qa8 {[%emt 0:00:20] Gewichteter Fehlerwert: Weiß=0.13 (sehr präzise) /Schwarz=0.41.  Fehler:       	Weiß=3     	Schwarz=6     Ungenau:       	Weiß=1     	Schwarz=2     OK:         	Weiß=19    	Schwarz=14    Bester:       	Weiß=4     	---        Stark:        	Weiß=1     	---} 1-0

[Event "VIII Open Semana Santa 2024"]
[Site "San Vicente del Raspeig"]
[Date "2024.03.29"]
[Round "5.8"]
[White "Ceres, Dragos"]
[Black "Zylka, Stanislaw"]
[Result "1-0"]
[ECO "C54"]
[WhiteElo "2482"]
[BlackElo "2401"]
[Annotator "TA"]
[PlyCount "103"]
[EventDate "2024.03.27"]
[EventType "swiss"]
[EventCountry "ESP"]
[SourceTitle "playchess.com"]
[Source "ChessBase"]
[SourceQuality "1"]
[TimeControl "5400+30"]

{[%evp 34,103,79,61,52,48,61,53,57,43,57,41,41,26,94,61,114,110,133,121,145,148,230,224,224,233,209,193,227,180,221,221,285,159,252,224,316,310,316,296,321,307,309,315,319,319,318,312,483,431,443,366,364,366,617,389,392,384,333,221,220,219,351,359,353,303,5193,5193,5181,4818,4710,4710]} 1. e4 {[%emt 0:00:03]} e5 {[%emt 0:01:38]} 2. Nf3 {[%emt 0:00:03]} Nc6 {[%emt 0:00:10]} 3. Bc4 {[%emt 0:00:03]} Bc5 {[%emt 0:00:07]} 4. O-O {[%emt 0:00:04]} Nf6 {[%emt 0:00:11]} 5. d3 {[%emt 0:00:03]} d6 {[%emt 0:00:14]} 6. c3 {[%emt 0:00:04]} a6 {[%emt 0:00:42]} 7. a4 {[%emt 0:00:05] C54: Giuoco Piano: 4 c3 Nf6, main lines with 5 d4 and 5 d3.} Ba7 {[%emt 0:01:16]} 8. Re1 $1 {[%emt 0:00:10] 8.Re1 is better than 8.Nbd2.} O-O {[%emt 0:00:42]} 9. h3 {[%emt 0:00:03]} b5 {[%emt 0:00:25]} 10. Bb3 {[%emt 0:01:15]} b4 {[%emt 0:02:47]} 11. Bg5 {[%emt 0:10:11]} Rb8 {[%emt 0:01:56]} 12. Nbd2 {[%emt 0:06:56]} Be6 $146 {[%emt 0:04:57]} ({Predecessor:} 12... h6 13. Be3 Bxe3 14. Rxe3 Na5 15. Bc2 c5 16. Nc4 Be6 17. Nxa5 Qxa5 18. c4 Qc7 {1-0 Efroimski,M (2462)-Balajayeva,K (2379) Shusha Rapid (Women) 2022 (3)}) 13. Bc2 {[%emt 0:00:46]} Ne7 {[%emt 0:02:04]} 14. d4 {[%emt 0:01:21]} Ng6 {[%emt 0:00:56]} 15. a5 {[%emt 0:00:44]} h6 {[%emt 0:02:53]} 16. Be3 {[%emt 0:00:13]} bxc3 {[%emt 0:03:14]} 17. bxc3 {[%emt 0:00:14]} c5 {[%emt 0:20:01]} 18. Bd3 {[%emt 0:03:32]} Bc8 {[%emt 0:09:38]} 19. dxe5 {[%emt 0:02:09]} dxe5 {[%emt 0:00:34]} 20. Qe2 {[%emt 0:00:55]} Qd6 {[%emt 0:05:52]} 21. Nc4 {[%emt 0:05:31]} Qc7 {[%emt 0:00:40]} 22. Reb1 {[%emt 0:01:12]} Bb7 {[%emt 0:04:36]} 23. Nfd2 {[%emt 0:00:56]} Rbd8 {[%emt 0:02:42]} (23... Bc6 $11 {remains equal.}) 24. Rb2 {[%emt 0:09:51]} Rfe8 {[%emt 0:00:39]} (24... Bc6 $14) 25. Bc2 $16 {[%emt 0:05:46]} Re7 {[%emt 0:08:58]} 26. Rab1 {[%emt 0:02:45]} Bc6 {[%emt 0:01:05]} 27. Nb6 {[%emt 0:00:12]} Bxb6 {[%emt 0:02:00]} (27... Bb7 $16 {was necessary.} 28. Nd5 Nxd5 (28... Bxd5 29. exd5 Nxd5 30. Bxg6 $16) 29. Rxb7 Qc8) 28. axb6 $18 {[%emt 0:00:59]} (28. Rxb6 $6 Nd7 $16) 28... Qb7 {[%emt 0:00:09]} 29. Nb3 {[%emt 0:01:20]} Qxb6 {[%emt 0:05:46]} 30. Bxc5 {[%emt 0:00:42]} (30. Nxc5 $6 Nf4 31. Qe1 (31. Qxa6 Qxa6 32. Nxa6 Ne2+ 33. Kh2 Nxc3 $11) (31. Rxb6 Nxe2+ 32. Kh2 Bb5 $14) 31... Qa5) 30... Qc7 {[%emt 0:00:30]} 31. Bxe7 {[%emt 0:00:17]} (31. Qxa6 Ra8 32. Qf1 Rd7 $16) 31... Qxe7 {[%emt 0:00:07]} 32. Na5 {[%emt 0:00:37]} (32. Qxa6 Bxe4) 32... Nf4 {[%emt 0:00:52]} 33. Qf3 {[%emt 0:03:15]} ({White should play} 33. Qxa6 $18 Bd7 34. Nc6 Bxc6 35. Qxc6) 33... Ba8 {[%emt 0:00:18]} (33... Bd7 $16 {was called for.} 34. Rb8 Rxb8 35. Rxb8+ Kh7) 34. Rb8 $18 {[%emt 0:00:33]} Kh7 {[%emt 0:00:32]} (34... Nd7 $142 35. Rxd8+ Qxd8) 35. Rxd8 $18 {[%emt 0:01:22]} Qxd8 {[%emt 0:00:07]} 36. Nc4 {[%emt 0:00:06]} Qc7 {[%emt 0:01:18]} 37. Nb6 {[%emt 0:00:14]} Bb7 {[%emt 0:00:40]} 38. Kh2 {[%emt 0:00:57]} Kg8 {[%emt 0:01:51]} 39. g3 {[%emt 0:01:23]} Ne6 {[%emt 0:00:10]} 40. Nd5 {[%emt 0:00:59]} Nxd5 {[%emt 0:00:07]} (40... Bxd5 $142 41. exd5 Nf8) 41. exd5 $18 {[%emt 0:00:06]} Ng5 {[%emt 0:00:07]} 42. Qd1 {[%emt 0:03:21]} Qc5 {[%emt 0:05:24]} 43. Rxb7 {[%emt 0:01:46]} Qxf2+ {[%emt 0:00:06]} 44. Kh1 {[%emt 0:00:03]} g6 {[%emt 0:00:07]} 45. Rb2 {[%emt 0:01:08]} Qxg3 {[%emt 0:01:56]} 46. Bf5 {[%emt 0:02:07]} gxf5 {[%emt 0:01:21]} 47. d6 {[%emt 0:00:06]} Kh7 {[%emt 0:02:29]} (47... Qxh3+ $142 48. Rh2 Qxc3) 48. d7 $18 {[%emt 0:00:19]} Ne6 {[%emt 0:06:01]} 49. Qf1 {[%emt 0:02:57]} (49. d8=R Nxd8 50. Qxd8 Qxc3 $16) (49. d8=B Qxc3 50. Ra2 (50. Rb3 $2 Qc6+ 51. Rf3 Nxd8 $19) 50... Qxh3+ 51. Rh2 Qc3 $11) 49... f4 $2 {[%emt 0:00:38]} (49... Qg5 50. Rb8 (50. Qxa6 $2 Qc1+ 51. Kh2 Qxb2+ $19) 50... Nd8) 50. Qb1+ $18 {[%emt 0:01:14]} (50. Qxa6 Qe1+ (50... Qxc3 51. Qe2 $11) (50... Qxh3+ 51. Kg1 $17) 51. Kh2 Qg3+ (51... Qxc3 $2 52. Rg2 $18) 52. Kh1 Qxh3+ (52... Qxc3 53. Qe2 $11) 53. Kg1 Qxc3 $15) 50... Kh8 {[%emt 0:00:06]} 51. Rb8+ {[%emt 0:00:04]} Kg7 {[%emt 0:00:07]} 52. Qg1 {[%emt 0:00:04]} ({Worse is} 52. d8=R Qxh3+ 53. Kg1 Qg3+ 54. Kf1 Qh3+ 55. Kg1 Qg3+ 56. Kf1 Qh3+ 57. Ke2 Qg4+ 58. Kd2 Nxd8 59. Rxd8 f3 $11) 1-0